[Event "Live Chess"]
[Site "Chess.com"]
[Date "2023.05.21"]
[Round "-"]
[White "Missedidea"]
[Black "grillage"]
[Result "1-0"]
[WhiteElo "1775"]
[BlackElo "1774"]
[TimeControl "300"]
[EndTime "8:12:48 PDT"]
[Termination "Missedidea won by checkmate"]

1. d4 {[%clk 0:04:58.4]} 1... Nf6 {[%clk 0:04:57.5]} 2. c4 {[%clk 0:04:57.3]}
2... e6 {[%clk 0:04:56.5]} 3. Nc3 {[%clk 0:04:56.4]} 3... Bb4 {[%clk 0:04:55.4]}
4. e3 {[%clk 0:04:53.3]} 4... O-O {[%clk 0:04:50.6]} 5. Ne2 {[%clk 0:04:51.9]}
5... c5 {[%clk 0:04:49.6]} 6. a3 {[%clk 0:04:51]} 6... Bxc3+ {[%clk 0:04:47.2]}
7. Nxc3 {[%clk 0:04:49.1]} 7... d6 {[%clk 0:04:42.1]} 8. Bd3 {[%clk 0:04:46.6]}
8... Nc6 {[%clk 0:04:41.2]} 9. O-O {[%clk 0:04:43.2]} 9... e5 {[%clk 0:04:37.4]}
10. d5 {[%clk 0:04:40.3]} 10... Ne7 {[%clk 0:04:36.1]} 11. f4 {[%clk 0:04:35]}
11... exf4 {[%clk 0:04:27]} 12. e4 {[%clk 0:04:28.2]} 12... Ng6 {[%clk
0:04:22.3]} 13. Qe1 {[%clk 0:04:15.6]} 13... Ne5 {[%clk 0:04:18.9]} 14. Be2
{[%clk 0:04:13.1]} 14... f3 {[%clk 0:04:08.6]} 15. gxf3 {[%clk 0:04:10.8]} 15...
Nh5 {[%clk 0:04:02.1]} 16. f4 {[%clk 0:03:58]} 16... Ng4 {[%clk 0:03:56.7]} 17.
Bf3 {[%clk 0:03:50.9]} 17... Qf6 {[%clk 0:03:52.4]} 18. e5 {[%clk 0:03:38.9]}
18... Qg6 {[%clk 0:03:50.3]} 19. Kh1 {[%clk 0:03:33.7]} 19... Re8 {[%clk
0:03:39.1]} 20. Rg1 {[%clk 0:03:09.2]} 20... Nhf6 {[%clk 0:03:17.2]} 21. e6
{[%clk 0:02:49.3]} 21... fxe6 {[%clk 0:03:04.6]} 22. h3 {[%clk 0:02:28.4]} 22...
exd5 {[%clk 0:03:01.6]} 23. Qg3 {[%clk 0:02:18.2]} 23... Nh5 {[%clk 0:02:27.1]}
24. Qg2 {[%clk 0:02:01.6]} 24... Ne3 {[%clk 0:02:00.7]} 25. Bxe3 {[%clk
0:01:58.1]} 25... Qxg2+ {[%clk 0:01:58.8]} 26. Rxg2 {[%clk 0:01:52.1]} 26...
Bxh3 {[%clk 0:01:55.7]} 27. Bxd5+ {[%clk 0:01:44.5]} 27... Kh8 {[%clk
0:01:45.1]} 28. Rg5 {[%clk 0:01:37.9]} 28... Rxe3 {[%clk 0:01:39.7]} 29. Rxh5
{[%clk 0:01:36.4]} 29... Bg4 {[%clk 0:01:34.2]} 30. Rh4 {[%clk 0:01:34.2]} 30...
Bf3+ {[%clk 0:01:31.9]} 31. Bxf3 {[%clk 0:01:31.4]} 31... Rxf3 {[%clk
0:01:31.3]} 32. Kg2 {[%clk 0:01:30.4]} 32... Rd3 {[%clk 0:01:27.8]} 33. Rah1
{[%clk 0:01:23.8]} 33... h6 {[%clk 0:01:25.9]} 34. Ne4 {[%clk 0:01:19.6]} 34...
Rd4 {[%clk 0:01:18.3]} 35. f5 {[%clk 0:01:09]} 35... Rxc4 {[%clk 0:01:12.4]} 36.
f6 {[%clk 0:01:07]} 36... Kg8 {[%clk 0:00:59.8]} 37. Nxd6 {[%clk 0:00:59.5]}
37... Rc2+ {[%clk 0:00:58.3]} 38. Kf3 {[%clk 0:00:56.3]} 38... Rf8 {[%clk
0:00:56.6]} 39. f7+ {[%clk 0:00:54.7]} 39... Kh7 {[%clk 0:00:48]} 40. R4h2
{[%clk 0:00:49.1]} 40... Rxh2 {[%clk 0:00:39]} 41. Rxh2 {[%clk 0:00:47.6]} 41...
b6 {[%clk 0:00:37]} 42. Ke4 {[%clk 0:00:44.1]} 42... g6 {[%clk 0:00:31.6]} 43.
Kd5 {[%clk 0:00:42.4]} 43... Kg7 {[%clk 0:00:30.9]} 44. Ke6 {[%clk 0:00:41]}
44... a6 {[%clk 0:00:21.7]} 45. Ne8+ {[%clk 0:00:37.8]} 45... Kh7 {[%clk
0:00:15.1]} 46. Ke7 {[%clk 0:00:36.8]} 46... Rxf7+ {[%clk 0:00:11.5]} 47. Kxf7
{[%clk 0:00:36]} 47... b5 {[%clk 0:00:09.6]} 48. Nf6+ {[%clk 0:00:34.8]} 48...
Kh8 {[%clk 0:00:07.8]} 49. Rxh6# {[%clk 0:00:33.6]} 1-0

[Event "Live Chess"]
[Site "Chess.com"]
[Date "2023.05.21"]
[Round "-"]
[White "luckywookie"]
[Black "ShanthamGrarks"]
[Result "0-1"]
[WhiteElo "811"]
[BlackElo "1955"]
[TimeControl "300"]
[EndTime "8:12:56 PDT"]
[Termination "ShanthamGrarks won by checkmate"]

1. e4 {[%clk 0:04:54.5]} 1... e5 {[%clk 0:04:57.7]} 2. Nf3 {[%clk 0:04:50.3]}
2... d5 {[%clk 0:04:56.9]} 3. exd5 {[%clk 0:04:37]} 3... Bd6 {[%clk 0:04:56.3]}
4. Nc3 {[%clk 0:04:35.5]} 4... Bg4 {[%clk 0:04:54.1]} 5. Be2 {[%clk 0:04:33.2]}
5... Nf6 {[%clk 0:04:53.4]} 6. h3 {[%clk 0:04:31.7]} 6... Bd7 {[%clk 0:04:50]}
7. d4 {[%clk 0:04:24.9]} 7... exd4 {[%clk 0:04:46.9]} 8. Qxd4 {[%clk 0:04:19.3]}
8... O-O {[%clk 0:04:46.3]} 9. Ne4 {[%clk 0:04:08.9]} 9... Nxe4 {[%clk
0:04:41.7]} 10. Qxe4 {[%clk 0:04:07.2]} 10... Re8 {[%clk 0:04:41.4]} 11. Qd4
{[%clk 0:04:05.4]} 11... c5 {[%clk 0:04:22.5]} 12. Qd3 {[%clk 0:03:53.6]} 12...
b5 {[%clk 0:04:02.8]} 13. Be3 {[%clk 0:03:40.4]} 13... c4 {[%clk 0:04:00.2]} 14.
Qd4 {[%clk 0:03:29.7]} 14... Bf5 {[%clk 0:03:53.2]} 15. c3 {[%clk 0:03:15.3]}
15... Nd7 {[%clk 0:03:47.4]} 16. h4 {[%clk 0:03:06.2]} 16... Bc5 {[%clk
0:03:06.5]} 17. Qd2 {[%clk 0:03:03.3]} 17... Bxe3 {[%clk 0:03:04.2]} 18. fxe3
{[%clk 0:03:00.5]} 18... Qb6 {[%clk 0:03:02.9]} 19. Nd4 {[%clk 0:02:53.1]} 19...
Bd3 {[%clk 0:03:00.3]} 20. Bxd3 {[%clk 0:02:50.4]} 20... cxd3 {[%clk 0:03:00]}
21. Qxd3 {[%clk 0:02:49.3]} 21... Ne5 {[%clk 0:02:58.9]} 22. Qe2 {[%clk
0:02:36.7]} 22... Nc4 {[%clk 0:02:56.2]} 23. O-O {[%clk 0:02:24]} 23... Rxe3
{[%clk 0:02:47.1]} 24. Qf2 {[%clk 0:02:19.6]} 24... Re7 {[%clk 0:02:44.2]} 25.
Rae1 {[%clk 0:02:17.1]} 25... Qc5 {[%clk 0:02:26.6]} 26. Rxe7 {[%clk 0:02:11.9]}
26... Qxe7 {[%clk 0:02:22.1]} 27. Nc6 {[%clk 0:02:10.7]} 27... Qd7 {[%clk
0:02:13.3]} 28. Qf3 {[%clk 0:01:36.7]} 28... Nd2 {[%clk 0:02:09.9]} 29. Qxf7+
{[%clk 0:01:31.4]} 29... Qxf7 {[%clk 0:02:06.9]} 30. Rxf7 {[%clk 0:01:29.6]}
30... Kxf7 {[%clk 0:02:05.8]} 31. Ne5+ {[%clk 0:01:29.1]} 31... Kf6 {[%clk
0:02:03.8]} 32. Nf3 {[%clk 0:01:24.5]} 32... Nxf3+ {[%clk 0:02:00.6]} 33. gxf3
{[%clk 0:01:23]} 33... Rd8 {[%clk 0:02:00.2]} 34. c4 {[%clk 0:01:17.5]} 34...
bxc4 {[%clk 0:01:58.2]} 35. b3 {[%clk 0:01:15]} 35... c3 {[%clk 0:01:56.4]} 36.
Kf2 {[%clk 0:01:12.4]} 36... c2 {[%clk 0:01:55.9]} 37. Ke2 {[%clk 0:01:11.5]}
37... Rxd5 {[%clk 0:01:52.8]} 38. b4 {[%clk 0:01:05.5]} 38... c1=Q {[%clk
0:01:50.7]} 39. f4 {[%clk 0:01:05.4]} 39... Qc3 {[%clk 0:01:46.9]} 40. a4 {[%clk
0:01:01.1]} 40... Rd2+ {[%clk 0:01:45.5]} 41. Ke1 {[%clk 0:00:59.8]} 41... Qc1#
{[%clk 0:01:44.4]} 0-1

[Event "Live Chess"]
[Site "Chess.com"]
[Date "2023.05.21"]
[Round "-"]
[White "CheckThis4"]
[Black "JohanKjeldahl"]
[Result "1-0"]
[WhiteElo "2530"]
[BlackElo "1889"]
[TimeControl "300"]
[EndTime "8:13:08 PDT"]
[Termination "CheckThis4 won by resignation"]

1. d4 {[%clk 0:04:58.7]} 1... Nf6 {[%clk 0:04:58]} 2. Nc3 {[%clk 0:04:58.1]}
2... e6 {[%clk 0:04:53.8]} 3. e4 {[%clk 0:04:58]} 3... c5 {[%clk 0:04:51.2]} 4.
d5 {[%clk 0:04:56.7]} 4... d6 {[%clk 0:04:46]} 5. Bg5 {[%clk 0:04:47.9]} 5...
Be7 {[%clk 0:04:44.2]} 6. Bb5+ {[%clk 0:04:45.8]} 6... Bd7 {[%clk 0:04:36.3]} 7.
dxe6 {[%clk 0:04:44.7]} 7... fxe6 {[%clk 0:04:34.5]} 8. e5 {[%clk 0:04:44.1]}
8... Bxb5 {[%clk 0:04:29.4]} 9. exf6 {[%clk 0:04:39.7]} 9... gxf6 {[%clk
0:04:22.2]} 10. Nxb5 {[%clk 0:03:56.4]} 10... Qa5+ {[%clk 0:04:19.6]} 11. Nc3
{[%clk 0:03:46.3]} 11... fxg5 {[%clk 0:04:18.2]} 12. Qh5+ {[%clk 0:03:44]} 12...
Kd7 {[%clk 0:04:17.3]} 13. Nf3 {[%clk 0:03:43.2]} 13... Nc6 {[%clk 0:04:11.2]}
14. O-O-O {[%clk 0:03:41.9]} 14... b5 {[%clk 0:03:59.8]} 15. Rhe1 {[%clk
0:03:37.5]} 15... Rae8 {[%clk 0:03:45]} 16. Qf7 {[%clk 0:03:33.6]} 16... Nd8
{[%clk 0:03:38]} 17. Qg7 {[%clk 0:03:08.4]} 17... b4 {[%clk 0:03:33.4]} 18. Ne4
{[%clk 0:03:06.7]} 18... Qxa2 {[%clk 0:03:11.2]} 19. Nxc5+ {[%clk 0:02:45.6]}
19... Kc6 {[%clk 0:03:06.3]} 20. Nb3 {[%clk 0:02:41.2]} 20... Rhg8 {[%clk
0:02:54.3]} 21. Qxh7 {[%clk 0:02:38.3]} 21... g4 {[%clk 0:02:52.6]} 22. Nfd4+
{[%clk 0:02:35.1]} 22... Kb6 {[%clk 0:02:46.2]} 23. Kd2 {[%clk 0:02:11.9]} 23...
Bg5+ {[%clk 0:02:44.5]} 24. Ke2 {[%clk 0:02:10.6]} 24... Qxb2 {[%clk 0:02:37]}
25. Kf1 {[%clk 0:02:05]} 25... Bf6 {[%clk 0:02:18.1]} 26. Ra1 {[%clk 0:01:51]}
26... Rg7 {[%clk 0:02:16]} 27. Qd3 {[%clk 0:01:47.2]} 27... Bxd4 {[%clk
0:02:12.2]} 28. Nxd4 {[%clk 0:01:43.8]} 28... Qc3 {[%clk 0:01:47.3]} 29. Qb5+
{[%clk 0:01:41]} 29... Kc7 {[%clk 0:01:44.8]} 30. Rxa7+ {[%clk 0:01:37.7]} 30...
Kc8 {[%clk 0:01:43.6]} 31. Ra8+ {[%clk 0:01:33.3]} 31... Kc7 {[%clk 0:01:38.5]}
32. Qb8+ {[%clk 0:01:31.1]} 32... Kd7 {[%clk 0:01:35.7]} 33. Ra7+ {[%clk
0:01:29.6]} 1-0

[Event "Live Chess"]
[Site "Chess.com"]
[Date "2023.05.21"]
[Round "-"]
[White "gmnorfolk"]
[Black "zdanevych"]
[Result "1-0"]
[WhiteElo "2129"]
[BlackElo "1461"]
[TimeControl "300"]
[EndTime "8:13:15 PDT"]
[Termination "gmnorfolk won by resignation"]

1. d4 {[%clk 0:04:58.9]} 1... d5 {[%clk 0:04:59.3]} 2. c4 {[%clk 0:04:58.2]}
2... c6 {[%clk 0:04:58.6]} 3. Nf3 {[%clk 0:04:56.3]} 3... a6 {[%clk 0:04:57.5]}
4. Nbd2 {[%clk 0:04:52.7]} 4... Nf6 {[%clk 0:04:55.2]} 5. g3 {[%clk 0:04:50.5]}
5... Bg4 {[%clk 0:04:52.7]} 6. Bg2 {[%clk 0:04:49.8]} 6... e6 {[%clk 0:04:52.2]}
7. O-O {[%clk 0:04:49.1]} 7... Bd6 {[%clk 0:04:48.4]} 8. b3 {[%clk 0:04:47.2]}
8... O-O {[%clk 0:04:46.3]} 9. Bb2 {[%clk 0:04:46.8]} 9... h6 {[%clk 0:04:43.8]}
10. Qc2 {[%clk 0:04:46.3]} 10... Nbd7 {[%clk 0:04:42.4]} 11. e4 {[%clk 0:04:45]}
11... dxe4 {[%clk 0:04:40.5]} 12. Nxe4 {[%clk 0:04:44.1]} 12... Nxe4 {[%clk
0:04:39.9]} 13. Qxe4 {[%clk 0:04:42.4]} 13... Nf6 {[%clk 0:04:37.7]} 14. Qe3
{[%clk 0:04:39.1]} 14... Bf5 {[%clk 0:04:27.7]} 15. h3 {[%clk 0:04:37.5]} 15...
Rc8 {[%clk 0:04:21.2]} 16. Rfd1 {[%clk 0:04:32.2]} 16... Bb8 {[%clk 0:04:17.1]}
17. Ne5 {[%clk 0:04:27.5]} 17... Qe7 {[%clk 0:04:08.1]} 18. a4 {[%clk
0:04:24.2]} 18... Rfd8 {[%clk 0:04:03.1]} 19. a5 {[%clk 0:04:18]} 19... Ba7
{[%clk 0:03:56.8]} 20. Ba3 {[%clk 0:04:14.3]} 20... Qe8 {[%clk 0:03:48.3]} 21.
f4 {[%clk 0:04:07.9]} 21... Bb8 {[%clk 0:03:40.1]} 22. g4 {[%clk 0:04:06.4]}
22... Bh7 {[%clk 0:03:31.4]} 23. Rf1 {[%clk 0:04:04.6]} 23... Nd7 {[%clk
0:03:27.1]} 24. Nf3 {[%clk 0:03:54.5]} 24... Ba7 {[%clk 0:03:20]} 25. Rad1
{[%clk 0:03:47.4]} 25... Nf6 {[%clk 0:03:18.7]} 26. Ne5 {[%clk 0:03:38.9]} 26...
Nd7 {[%clk 0:03:16.9]} 27. Kh1 {[%clk 0:03:31]} 27... Nxe5 {[%clk 0:03:15.5]}
28. fxe5 {[%clk 0:03:27.4]} 28... Rd7 {[%clk 0:03:06]} 29. Bd6 {[%clk
0:03:20.8]} 29... Bb8 {[%clk 0:02:59.8]} 30. c5 {[%clk 0:03:19.8]} 30... Bxd6
{[%clk 0:02:55.2]} 31. exd6 {[%clk 0:03:16.7]} 31... Qd8 {[%clk 0:02:31.8]} 32.
Rde1 {[%clk 0:03:09.8]} 32... Qxa5 {[%clk 0:02:27]} 33. Re2 {[%clk 0:03:02.2]}
33... Qd8 {[%clk 0:02:18.2]} 34. Ref2 {[%clk 0:03:00.7]} 34... b6 {[%clk
0:02:14.4]} 35. b4 {[%clk 0:02:58.3]} 35... bxc5 {[%clk 0:02:12.8]} 36. bxc5
{[%clk 0:02:55.9]} 36... Ra8 {[%clk 0:02:10.5]} 37. Bxc6 {[%clk 0:02:53.2]}
37... Qc8 {[%clk 0:02:04.5]} 38. Bxd7 {[%clk 0:02:45.9]} 38... Qxd7 {[%clk
0:02:03.8]} 39. Rxf7 {[%clk 0:02:44.7]} 39... Qc6+ {[%clk 0:01:59.3]} 40. Kh2
{[%clk 0:02:41.2]} 40... a5 {[%clk 0:01:53.7]} 41. Qxe6 {[%clk 0:02:39.5]} 1-0

[Event "Live Chess"]
[Site "Chess.com"]
[Date "2023.05.21"]
[Round "-"]
[White "LiamClery2020"]
[Black "PantherCal"]
[Result "1-0"]
[WhiteElo "2010"]
[BlackElo "1853"]
[TimeControl "300"]
[EndTime "8:13:36 PDT"]
[Termination "LiamClery2020 won by resignation"]

1. e4 {[%clk 0:04:59.8]} 1... d6 {[%clk 0:04:57.9]} 2. d4 {[%clk 0:04:57.5]}
2... Nf6 {[%clk 0:04:57.8]} 3. Nc3 {[%clk 0:04:56.6]} 3... g6 {[%clk 0:04:57.4]}
4. f3 {[%clk 0:04:55.9]} 4... Bg7 {[%clk 0:04:57.1]} 5. Be3 {[%clk 0:04:55.8]}
5... O-O {[%clk 0:04:55.4]} 6. Qd2 {[%clk 0:04:55.1]} 6... c6 {[%clk 0:04:53.4]}
7. Bh6 {[%clk 0:04:53.7]} 7... b5 {[%clk 0:04:52.3]} 8. Bxg7 {[%clk 0:04:52.2]}
8... Kxg7 {[%clk 0:04:51.4]} 9. g4 {[%clk 0:04:52.1]} 9... b4 {[%clk 0:04:49.8]}
10. Nd1 {[%clk 0:04:51.6]} 10... c5 {[%clk 0:04:46]} 11. d5 {[%clk 0:04:48.3]}
11... e6 {[%clk 0:04:45.1]} 12. h4 {[%clk 0:04:46.1]} 12... exd5 {[%clk
0:04:43.4]} 13. h5 {[%clk 0:04:44.4]} 13... dxe4 {[%clk 0:03:58.7]} 14. hxg6
{[%clk 0:04:41.9]} 14... e3 {[%clk 0:03:57.9]} 15. Nxe3 {[%clk 0:04:37.4]} 15...
fxg6 {[%clk 0:03:29.1]} 16. O-O-O {[%clk 0:04:31.1]} 16... Nc6 {[%clk
0:03:14.5]} 17. Bc4 {[%clk 0:04:14.3]} 17... Ne5 {[%clk 0:03:03.6]} 18. Bb3
{[%clk 0:03:59.3]} 18... a5 {[%clk 0:02:49.5]} 19. Nd5 {[%clk 0:03:55.3]} 19...
c4 {[%clk 0:02:33.4]} 20. Qh6+ {[%clk 0:03:51.3]} 20... Kf7 {[%clk 0:02:11.5]}
21. Nxf6 {[%clk 0:03:42.5]} 21... Kxf6 {[%clk 0:02:11.4]} 22. Qf4+ {[%clk
0:03:32.2]} 22... Ke7 {[%clk 0:02:09]} 23. Rxh7+ {[%clk 0:03:29.8]} 23... Rf7
{[%clk 0:01:50.9]} 24. Qg5+ {[%clk 0:03:20.3]} 24... Kd7 {[%clk 0:01:42.8]} 25.
Rxd6+ {[%clk 0:03:18.8]} 25... Kxd6 {[%clk 0:01:36.7]} 26. Qxd8+ {[%clk
0:03:17.8]} 26... Rd7 {[%clk 0:01:33.8]} 27. Rxd7+ {[%clk 0:03:16.7]} 27... Nxd7
{[%clk 0:01:33.7]} 28. Bxc4 {[%clk 0:03:14.3]} 28... Bb7 {[%clk 0:01:31]} 29.
Qg5 {[%clk 0:03:09.6]} 29... Re8 {[%clk 0:01:26.3]} 30. Qxg6+ {[%clk 0:03:07.3]}
30... Kc7 {[%clk 0:01:24.4]} 31. Qxe8 {[%clk 0:03:05.9]} 1-0

[Event "Live Chess"]
[Site "Chess.com"]
[Date "2023.05.21"]
[Round "-"]
[White "lord_cll"]
[Black "Bot_Boy"]
[Result "1-0"]
[WhiteElo "1206"]
[BlackElo "332"]
[TimeControl "300"]
[EndTime "8:13:38 PDT"]
[Termination "lord_cll won by checkmate"]

1. e4 {[%clk 0:04:56.7]} 1... c6 {[%clk 0:04:59.4]} 2. d4 {[%clk 0:04:55]} 2...
d5 {[%clk 0:04:58.6]} 3. exd5 {[%clk 0:04:54.9]} 3... cxd5 {[%clk 0:04:57]} 4.
c4 {[%clk 0:04:54.5]} 4... Nf6 {[%clk 0:04:53.3]} 5. Nf3 {[%clk 0:04:52.9]} 5...
Bf5 {[%clk 0:04:43.8]} 6. Nc3 {[%clk 0:04:42.8]} 6... e6 {[%clk 0:04:30.6]} 7.
Be3 {[%clk 0:04:37.4]} 7... Ne4 {[%clk 0:04:25.3]} 8. cxd5 {[%clk 0:04:31.6]}
8... Nxc3 {[%clk 0:04:13.5]} 9. bxc3 {[%clk 0:04:29.4]} 9... Qxd5 {[%clk
0:04:04]} 10. Qa4+ {[%clk 0:04:26.8]} 10... Nd7 {[%clk 0:03:54.7]} 11. Bb5
{[%clk 0:04:23]} 11... Rc8 {[%clk 0:03:35.5]} 12. Ne5 {[%clk 0:04:12]} 12...
Qxg2 {[%clk 0:03:00.6]} 13. Bxd7+ {[%clk 0:03:49.8]} 13... Ke7 {[%clk
0:02:52.6]} 14. Kd2 {[%clk 0:03:17.4]} 14... Rxc3 {[%clk 0:02:41.3]} 15. Kxc3
{[%clk 0:03:13]} 15... Kf6 {[%clk 0:02:17.4]} 16. Rhg1 {[%clk 0:03:10]} 16...
Qd5 {[%clk 0:01:42.7]} 17. Bg5# {[%clk 0:03:02.4]} 1-0

[Event "Live Chess"]
[Site "Chess.com"]
[Date "2023.05.21"]
[Round "-"]
[White "LordBenin"]
[Black "PinnedPiece1506"]
[Result "0-1"]
[WhiteElo "1402"]
[BlackElo "1913"]
[TimeControl "300"]
[EndTime "8:13:49 PDT"]
[Termination "PinnedPiece1506 won by resignation"]

1. e4 {[%clk 0:04:58.3]} 1... e6 {[%clk 0:04:58.1]} 2. d4 {[%clk 0:04:56.9]}
2... d5 {[%clk 0:04:57.6]} 3. exd5 {[%clk 0:04:54.2]} 3... exd5 {[%clk
0:04:57.5]} 4. Nf3 {[%clk 0:04:52.8]} 4... Nf6 {[%clk 0:04:57.1]} 5. Bg5 {[%clk
0:04:49.7]} 5... Bd6 {[%clk 0:04:56.1]} 6. h3 {[%clk 0:04:47.7]} 6... Bf5 {[%clk
0:04:53.1]} 7. Bd3 {[%clk 0:04:44.3]} 7... Qe7+ {[%clk 0:04:48.2]} 8. Qe2 {[%clk
0:04:36.6]} 8... Bxd3 {[%clk 0:04:44.8]} 9. Qxe7+ {[%clk 0:04:34]} 9... Bxe7
{[%clk 0:04:40.3]} 10. cxd3 {[%clk 0:04:32.4]} 10... Nc6 {[%clk 0:04:36.4]} 11.
a3 {[%clk 0:04:26.1]} 11... O-O {[%clk 0:04:34.4]} 12. O-O {[%clk 0:04:23.6]}
12... h6 {[%clk 0:04:30.8]} 13. Bh4 {[%clk 0:04:20.5]} 13... g5 {[%clk
0:04:28.5]} 14. Bg3 {[%clk 0:04:18.4]} 14... Rac8 {[%clk 0:04:27.3]} 15. Ne5
{[%clk 0:04:13.1]} 15... Nxd4 {[%clk 0:04:24.1]} 16. Nc3 {[%clk 0:04:00]} 16...
c6 {[%clk 0:04:19.2]} 17. Rfe1 {[%clk 0:03:53.2]} 17... Nf5 {[%clk 0:04:16]} 18.
Bh2 {[%clk 0:03:48.1]} 18... Bd6 {[%clk 0:04:15.4]} 19. g4 {[%clk 0:03:41.9]}
19... Nd4 {[%clk 0:04:06.4]} 20. Kg2 {[%clk 0:03:02]} 20... Nc2 {[%clk
0:04:00.5]} 21. Rac1 {[%clk 0:02:38]} 21... Nxe1+ {[%clk 0:03:58.8]} 22. Rxe1
{[%clk 0:02:36.6]} 22... Rfe8 {[%clk 0:03:58.1]} 23. d4 {[%clk 0:02:32.7]} 23...
c5 {[%clk 0:03:56.1]} 24. Nb5 {[%clk 0:02:29.5]} 24... Bb8 {[%clk 0:03:53.2]}
25. Rc1 {[%clk 0:02:14.2]} 25... a6 {[%clk 0:03:49.4]} 26. Nc3 {[%clk
0:01:57.8]} 26... cxd4 {[%clk 0:03:48]} 0-1

[Event "Live Chess"]
[Site "Chess.com"]
[Date "2023.05.21"]
[Round "-"]
[White "seabuck"]
[Black "ms_lilley"]
[Result "1-0"]
[WhiteElo "1893"]
[BlackElo "603"]
[TimeControl "300"]
[EndTime "8:13:54 PDT"]
[Termination "seabuck won by checkmate"]

1. d4 {[%clk 0:04:58.8]} 1... d5 {[%clk 0:04:58.1]} 2. c4 {[%clk 0:04:57.8]}
2... e6 {[%clk 0:04:56.1]} 3. Nc3 {[%clk 0:04:56.3]} 3... Nf6 {[%clk 0:04:54.5]}
4. Nf3 {[%clk 0:04:55.3]} 4... a6 {[%clk 0:04:53.1]} 5. cxd5 {[%clk 0:04:49.6]}
5... exd5 {[%clk 0:04:51]} 6. Bg5 {[%clk 0:04:46.8]} 6... h6 {[%clk 0:04:47.7]}
7. Bxf6 {[%clk 0:04:39.3]} 7... Qxf6 {[%clk 0:04:45.9]} 8. Nxd5 {[%clk
0:04:34.8]} 8... Qc6 {[%clk 0:04:30.9]} 9. Nc3 {[%clk 0:04:25]} 9... Be6 {[%clk
0:04:27.8]} 10. e3 {[%clk 0:04:18]} 10... Bb4 {[%clk 0:04:22.5]} 11. Qd2 {[%clk
0:04:11.5]} 11... O-O {[%clk 0:04:07.5]} 12. Be2 {[%clk 0:04:05.4]} 12... Bxc3
{[%clk 0:03:56.8]} 13. Qxc3 {[%clk 0:04:01.6]} 13... Qxc3+ {[%clk 0:03:53.6]}
14. bxc3 {[%clk 0:03:59.2]} 14... Nc6 {[%clk 0:03:51.6]} 15. O-O {[%clk
0:03:49.7]} 15... b5 {[%clk 0:03:49.1]} 16. a3 {[%clk 0:03:43.8]} 16... Na5
{[%clk 0:03:46.7]} 17. Ne5 {[%clk 0:03:36]} 17... Nb3 {[%clk 0:03:42.4]} 18.
Rad1 {[%clk 0:03:26.4]} 18... c5 {[%clk 0:03:33.3]} 19. Bf3 {[%clk 0:03:12.4]}
19... Rad8 {[%clk 0:03:23.8]} 20. Nc6 {[%clk 0:03:09]} 20... Rd7 {[%clk
0:03:12.7]} 21. Rfe1 {[%clk 0:02:46.3]} 21... cxd4 {[%clk 0:03:05.3]} 22. exd4
{[%clk 0:02:39.2]} 22... Bf5 {[%clk 0:02:51.9]} 23. Ne7+ {[%clk 0:02:35.1]}
23... Kh7 {[%clk 0:02:41.7]} 24. Nxf5 {[%clk 0:02:32.9]} 24... g6 {[%clk
0:02:25.1]} 25. Ne3 {[%clk 0:02:27.9]} 25... a5 {[%clk 0:02:11.2]} 26. Rb1
{[%clk 0:02:22.1]} 26... a4 {[%clk 0:02:08.6]} 27. Bc6 {[%clk 0:02:16.8]} 27...
Nd2 {[%clk 0:01:57.2]} 28. Bxd7 {[%clk 0:02:14.5]} 28... Nxb1 {[%clk 0:01:55.5]}
29. Rxb1 {[%clk 0:02:13.1]} 29... Rb8 {[%clk 0:01:50.4]} 30. Rxb5 {[%clk
0:02:08.9]} 30... Rxb5 {[%clk 0:01:47]} 31. Bxb5 {[%clk 0:02:06.9]} 31... Kg7
{[%clk 0:01:45.5]} 32. Bxa4 {[%clk 0:02:05.9]} 32... g5 {[%clk 0:01:42.5]} 33.
c4 {[%clk 0:02:04.9]} 33... Kf6 {[%clk 0:01:38.6]} 34. c5 {[%clk 0:02:03.8]}
34... Ke6 {[%clk 0:01:36.6]} 35. Bc6 {[%clk 0:02:01.2]} 35... Ke7 {[%clk
0:01:33.3]} 36. d5 {[%clk 0:01:59.6]} 36... Kd8 {[%clk 0:01:31.4]} 37. a4 {[%clk
0:01:58.1]} 37... Kc7 {[%clk 0:01:29.7]} 38. a5 {[%clk 0:01:54.4]} 38... f5
{[%clk 0:01:27]} 39. Nxf5 {[%clk 0:01:52.4]} 39... g4 {[%clk 0:01:25.7]} 40.
Nxh6 {[%clk 0:01:50.4]} 40... g3 {[%clk 0:01:23.5]} 41. hxg3 {[%clk 0:01:49.2]}
41... Kb8 {[%clk 0:01:20]} 42. Bb5 {[%clk 0:01:45.1]} 42... Ka7 {[%clk
0:01:18.2]} 43. g4 {[%clk 0:01:44.1]} 43... Kb7 {[%clk 0:01:16.3]} 44. g5 {[%clk
0:01:43.3]} 44... Kc7 {[%clk 0:01:14.7]} 45. g6 {[%clk 0:01:42.6]} 45... Kd8
{[%clk 0:01:12.2]} 46. g7 {[%clk 0:01:41.6]} 46... Ke7 {[%clk 0:01:10.8]} 47.
Nf5+ {[%clk 0:01:39.5]} 47... Kf7 {[%clk 0:01:06.9]} 48. a6 {[%clk 0:01:35.9]}
48... Kf6 {[%clk 0:01:05.2]} 49. g8=Q {[%clk 0:01:32.2]} 49... Kxf5 {[%clk
0:01:03.9]} 50. Qe6+ {[%clk 0:01:31.1]} 50... Kf4 {[%clk 0:01:02.1]} 51. Qe3+
{[%clk 0:01:28.8]} 51... Kf5 {[%clk 0:00:59.5]} 52. Bd7+ {[%clk 0:01:27.2]}
52... Kf6 {[%clk 0:00:57.3]} 53. Qe6+ {[%clk 0:01:25.6]} 53... Kg5 {[%clk
0:00:55.7]} 54. Qf5+ {[%clk 0:01:24.3]} 54... Kh6 {[%clk 0:00:53.2]} 55. Qf6+
{[%clk 0:01:21.8]} 55... Kh5 {[%clk 0:00:51.6]} 56. g4# {[%clk 0:01:19]} 1-0

[Event "Live Chess"]
[Site "Chess.com"]
[Date "2023.05.21"]
[Round "-"]
[White "TheAuditer"]
[Black "LiamBellwood"]
[Result "0-1"]
[WhiteElo "1384"]
[BlackElo "1923"]
[TimeControl "300"]
[EndTime "8:13:54 PDT"]
[Termination "LiamBellwood won by resignation"]

1. d4 {[%clk 0:04:55]} 1... e6 {[%clk 0:04:59.9]} 2. c4 {[%clk 0:04:52.9]} 2...
f5 {[%clk 0:04:59.3]} 3. Nc3 {[%clk 0:04:52.1]} 3... Nf6 {[%clk 0:04:58.8]} 4.
g3 {[%clk 0:04:50.7]} 4... Bb4 {[%clk 0:04:57.9]} 5. Bg2 {[%clk 0:04:48.5]} 5...
O-O {[%clk 0:04:57.5]} 6. Nf3 {[%clk 0:04:43.2]} 6... Ne4 {[%clk 0:04:53.5]} 7.
Qc2 {[%clk 0:04:37]} 7... d6 {[%clk 0:04:50.2]} 8. O-O {[%clk 0:04:34.7]} 8...
Bxc3 {[%clk 0:04:49.5]} 9. bxc3 {[%clk 0:04:32.8]} 9... Nd7 {[%clk 0:04:43.3]}
10. Nd2 {[%clk 0:04:27.7]} 10... Ndf6 {[%clk 0:04:42.3]} 11. Nxe4 {[%clk
0:04:21.9]} 11... fxe4 {[%clk 0:04:41.9]} 12. e3 {[%clk 0:04:18.8]} 12... d5
{[%clk 0:04:40.6]} 13. cxd5 {[%clk 0:04:15.6]} 13... exd5 {[%clk 0:04:40.5]} 14.
c4 {[%clk 0:04:13]} 14... c6 {[%clk 0:04:36]} 15. cxd5 {[%clk 0:04:05.3]} 15...
cxd5 {[%clk 0:04:35.9]} 16. Ba3 {[%clk 0:04:01.7]} 16... Rf7 {[%clk 0:04:28.6]}
17. Rac1 {[%clk 0:03:52.9]} 17... Bf5 {[%clk 0:04:13.8]} 18. Qb3 {[%clk
0:03:43.3]} 18... Qd7 {[%clk 0:03:58.6]} 19. Rc5 {[%clk 0:03:38.6]} 19... Bh3
{[%clk 0:03:50.8]} 20. Rfc1 {[%clk 0:03:35.2]} 20... Bxg2 {[%clk 0:03:47.2]} 21.
Kxg2 {[%clk 0:03:33.9]} 21... Qg4 {[%clk 0:03:31.7]} 22. Rc8+ {[%clk 0:03:25.3]}
22... Rxc8 {[%clk 0:03:30.2]} 0-1